lending/lending_fUSD_20250131
["ID","MTS","AMOUNT","RATE_DAILY","PERIOD"]
[351045382,1738306263531,-1066.56,0.00019863,3]
[351045383,1738306263540,-1499.477048,0.00019863,3]
[351045384,1738306263550,-302.68495022,0.00019863,3]
[351045385,1738306263559,-500.0,0.00019863,3]
[351045386,1738306263568,-500.0,0.00019863,3]
[351045387,1738306263577,-500.0,0.00019863,3]
[351045388,1738306263586,-717.04,0.00019863,3]
[351045389,1738306263595,-500.0,0.00019863,3]
[351045390,1738306263604,-500.0,0.00019863,3]
[351045391,1738306263613,-500.0,0.00019863,3]
[351045392,1738306263622,-500.0,0.00019863,3]
[351045393,1738306263631,-500.0,0.00019863,3]
[351045394,1738306263640,-500.0,0.00019863,3]
[351045395,1738306263649,-634.07,0.00019863,3]
[351045396,1738306263659,-975.34,0.00019863,3]
[351045397,1738306263668,-500.0,0.00019863,3]
[351045398,1738306263677,-500.0,0.00019863,3]
[351045399,1738306263686,-500.0,0.00019863,3]
[351045400,1738306263695,-500.0,0.00019863,3]
[351045401,1738306263705,-500.0,0.00019863,3]
[351045402,1738306263714,-500.0,0.00019863,3]
[351045403,1738306263723,-666.34,0.00019863,3]
[351045404,1738306263733,-678.47,0.00019863,3]
[351045405,1738306263742,-662.92,0.00019863,3]
[351045406,1738306263751,-500.0,0.00019863,3]
[351045407,1738306263760,-500.0,0.00019863,3]
[351045408,1738306263769,-500.0,0.00019863,3]
[351045409,1738306263779,-1117.45,0.00019863,3]
[351045410,1738306263788,-702.33,0.00019863,3]
[351045411,1738306263797,-604.08,0.00019863,3]
[351045412,1738306263807,-500.0,0.00019863,3]
[351045413,1738306263816,-1293.05,0.00019863,3]
[351045414,1738306263826,-542.25,0.00019863,3]
[351045415,1738306263836,-960.27,0.00019863,3]
[351045416,1738306263845,-568.51,0.00019863,3]
[351045417,1738306263855,-718.36,0.00019863,3]
[351045418,1738306263864,-500.0,0.00019863,3]
[351045419,1738306263874,-1056.78,0.00019863,3]
[351045420,1738306263884,-500.0,0.00019863,3]
[351045421,1738306263893,-581.44,0.00019863,3]
[351045422,1738306263903,-678.95,0.00019863,3]
[351045423,1738306263914,-500.0,0.00019863,3]
[351045424,1738306263923,-500.0,0.00019863,3]
[351045425,1738306263933,-500.0,0.00019863,3]
[351045426,1738306263943,-859.88,0.00019863,3]
[351045427,1738306263953,-500.0,0.00019863,3]
[351045428,1738306263963,-500.0,0.00019863,3]
[351045429,1738306263972,-1253.69,0.00019863,3]
[351045430,1738306263982,-500.0,0.00019863,3]
[351045431,1738306263992,-500.0,0.00019863,3]
[351045432,1738306264002,-500.0,0.00019863,3]
[351045433,1738306264015,-709.31,0.00019863,3]
[351045434,1738306264025,-309.32602495,0.00019863,3]
[351045435,1738306264035,-592.15,0.00019863,3]
[351045436,1738306264047,-500.0,0.00019863,3]
[351045437,1738306264056,-500.0,0.00019863,3]
[351045438,1738306264066,-616.48,0.00019863,3]
[351045439,1738306264076,-500.0,0.00019863,3]
[351045440,1738306264087,-1153.93,0.00019863,3]
[351045441,1738306264097,-536.54,0.00019863,3]
[351045442,1738306264106,-560.68,0.00019863,3]
[351045443,1738306264116,-707.1,0.00019863,3]
[351045444,1738306264125,-500.0,0.00019863,3]
[351045445,1738306264135,-839.24,0.00019863,3]
[351045446,1738306264145,-500.0,0.00019863,3]
[351045447,1738306264154,-500.0,0.00019863,3]
[351045448,1738306264164,-187.97610306,0.00019863,3]
[351045449,1738306264174,-500.0,0.00019863,3]
[351045450,1738306264184,-500.0,0.00019863,3]
[351045451,1738306264194,-728.4,0.00019863,3]
[351045452,1738306264204,-1433.98,0.00019863,3]
[351045453,1738306264214,-536.85,0.00019863,3]
[351045454,1738306264224,-500.0,0.00019863,3]
[351045455,1738306264234,-997.28,0.00019863,3]
[351045456,1738306264243,-1167.42,0.00019863,3]
[351045457,1738306264253,-500.0,0.00019863,3]
[351045458,1738306264263,-500.0,0.00019863,3]
[351045459,1738306264272,-500.0,0.00019863,3]
[351045460,1738306264282,-628.24,0.00019863,3]
[351045461,1738306264292,-1006.28,0.00019863,3]
[351045462,1738306264301,-500.0,0.00019863,3]
[351045463,1738306264311,-461.14863456,0.00019863,3]
[351045464,1738306264321,-1033.67,0.00019863,3]
[351045465,1738306264330,-501.39,0.00019863,3]
[351045466,1738306264340,-500.0,0.00019863,3]
[351045467,1738306264349,-500.0,0.00019863,3]
[351045468,1738306264361,-500.0,0.00019863,3]
[351045469,1738306264371,-500.0,0.00019863,3]
[351045470,1738306264381,-541.07,0.00019863,3]
[351045471,1738306264391,-1146.06,0.00019863,3]
[351045472,1738306264402,-500.0,0.00019863,3]
[351045473,1738306264411,-500.0,0.00019863,3]
[351045474,1738306264420,-500.0,0.00019863,3]
[351045475,1738306264429,-538.76,0.00019863,3]
[351045476,1738306264439,-500.0,0.00019863,3]
[351045477,1738306264448,-629.83,0.00019863,3]
[351045478,1738306264458,-563.8,0.00019863,3]
[351045479,1738306264468,-500.0,0.00019863,3]
[351045480,1738306264478,-612.23,0.00019863,3]
[351045481,1738306264487,-500.0,0.00019863,3]
[351045482,1738306264496,-500.0,0.00019863,3]
[351045483,1738306264506,-1133.72,0.00019863,3]
[351045484,1738306264516,-728.69,0.00019863,3]
[351045485,1738306264525,-1066.0,0.00019863,3]
[351045486,1738306264535,-1104.72,0.00019863,3]
[351045487,1738306264544,-502.71,0.00019863,3]
[351045488,1738306264554,-806.0,0.00019863,3]
[351045489,1738306264564,-500.0,0.00019863,3]
[351045490,1738306264574,-500.0,0.00019863,3]
[351045491,1738306264583,-500.0,0.00019863,3]
[351045492,1738306264593,-516.74,0.00019863,3]
[351045493,1738306264602,-500.0,0.00019863,3]
[351045494,1738306264611,-1115.4,0.00019863,3]
[351045495,1738306264621,-234.60142105,0.00019863,3]
[351045496,1738306264630,-726.75,0.00019863,3]
[351045497,1738306264639,-755.18,0.00019863,3]
[351045498,1738306264649,-500.0,0.00019863,3]
[351045499,1738306264658,-618.65,0.00019863,3]
[351045500,1738306264667,-917.2,0.00019863,3]
[351045501,1738306264677,-847.88,0.00019863,3]
[351045502,1738306264686,-1239.48,0.00019863,3]
[351045503,1738306264696,-500.0,0.00019863,3]
[351045504,1738306264706,-633.32,0.00019863,3]
[351045505,1738306264716,-1824.23,0.00019863,3]
[351045506,1738306264726,-500.0,0.00019863,3]
[351045507,1738306264735,-500.0,0.00019863,3]
[351045508,1738306264744,-500.0,0.00019863,3]
[351045509,1738306264754,-500.0,0.00019863,3]
[351045510,1738306264764,-500.0,0.00019863,3]
[351045511,1738306264773,-821.59,0.00019863,3]
[351045512,1738306264783,-500.0,0.00019863,3]
[351045513,1738306264794,-500.0,0.00019863,3]
[351045514,1738306264806,-1462.22,0.00019863,3]
[351045515,1738306264815,-500.0,0.00019863,3]
[351045516,1738306264825,-815.19,0.00019863,3]
[351045517,1738306264835,-500.0,0.00019863,3]
[351045518,1738306264844,-720.68,0.00019863,3]
[351045519,1738306264854,-500.0,0.00019863,3]
[351045520,1738306264864,-1052.43,0.00019863,3]
[351045521,1738306264874,-500.0,0.00019863,3]
[351045522,1738306264884,-500.0,0.00019863,3]
[351045523,1738306264894,-519.86,0.00019863,3]
[351045524,1738306264904,-500.0,0.00019863,3]
[351045525,1738306264914,-500.0,0.00019863,3]
[351045526,1738306264923,-762.44,0.00019863,3]
[351045527,1738306264933,-500.0,0.00019863,3]
[351045528,1738306264942,-500.0,0.00019863,3]
[351045529,1738306264951,-500.0,0.00019863,3]
[351045530,1738306264962,-500.0,0.00019863,3]
[351045531,1738306264971,-596.94,0.00019863,3]
[351045532,1738306264980,-870.85,0.00019863,3]
[351045533,1738306264990,-500.0,0.00019863,3]
[351045534,1738306265000,-3120.26,0.00019863,3]
[351045535,1738306265015,-514.66,0.00019863,3]
[351045536,1738306265024,-500.0,0.00019863,3]
[351045537,1738306265034,-1059.42,0.00019863,3]
[351045538,1738306265043,-955.99,0.00019863,3]
[351045539,1738306265054,-696.01,0.00019863,2]
[351045540,1738306265063,-920.05,0.00019863,3]
[351045541,1738306265073,-500.0,0.00019863,3]
[351045542,1738306265083,-500.0,0.00019863,3]
[351045543,1738306265093,-227.78134847,0.00019863,3]
[351045544,1738306265102,-1737.45,0.00019863,3]
[351045545,1738306265111,-883.16,0.00019863,3]
[351045546,1738306265120,-500.0,0.00019863,3]
[351045547,1738306265130,-2134.12,0.00019863,3]
[351045548,1738306265139,-500.0,0.00019863,3]
[351045549,1738306265149,-839.72,0.00019863,3]
[351045550,1738306265159,-1169.41,0.00019863,3]
[351045551,1738306265168,-1385.09,0.00019863,3]
[351045552,1738306265177,-1394.44,0.00019863,3]
[351045553,1738306265187,-500.0,0.00019863,3]
[351045554,1738306265196,-500.0,0.00019863,3]
[351045555,1738306265206,-3348.08,0.00019863,3]
[351045556,1738306265215,-500.0,0.00019863,3]
[351045557,1738306265224,-924.15,0.00019863,3]
[351045558,1738306265234,-500.0,0.00019863,3]
[351045559,1738306265243,-1127.44,0.00019863,3]
[351045560,1738306265253,-674.08,0.00019863,3]
[351045561,1738306265262,-3250.85,0.00019863,3]
[351045562,1738306265271,-374.22472999,0.00019863,3]
[351045563,1738306265280,-1133.24,0.00019863,3]
[351045564,1738306265290,-1845.5,0.00019863,3]
[351045565,1738306265299,-500.0,0.00019863,3]
[351045566,1738306265309,-1954.11,0.00019863,3]
[351045567,1738306265318,-500.0,0.00019863,3]
[351045568,1738306265328,-500.0,0.00019863,3]
[351045569,1738306265337,-500.0,0.00019863,3]
[351045570,1738306265347,-500.0,0.00019863,3]
[351045571,1738306265356,-500.0,0.00019863,3]
[351045572,1738306265366,-645.35,0.00019863,3]
[351045573,1738306265376,-942.8,0.00019863,3]
[351045574,1738306265385,-500.0,0.00019863,3]
[351045575,1738306265395,-4610.94,0.00019863,3]
[351045576,1738306265405,-6387.1,0.00019863,3]
[351045577,1738306265415,-594.96,0.00019863,3]
[351045578,1738306265424,-500.0,0.00019863,3]
[351045579,1738306265434,-766.14,0.00019863,3]
[351045580,1738306265444,-519.2,0.00019863,3]
[351045581,1738306265455,-582.14,0.00019863,3]
[351045582,1738306265464,-11987.44,0.00019863,3]
[351045583,1738306265474,-1269.84,0.00019863,3]
[351045584,1738306265483,-500.0,0.00019863,3]
[351045585,1738306265493,-1367.61,0.00019863,3]
[351045586,1738306265504,-937.78,0.00019863,3]
[351045587,1738306265514,-1640.43,0.00019863,3]
[351045588,1738306265523,-540.26,0.00019863,3]
[351045589,1738306265534,-1981.83,0.00019863,3]
[351045590,1738306265544,-8948.91,0.00019863,3]
[351045591,1738306265553,-2567.08,0.00019863,3]
[351045592,1738306265563,-631.98,0.00019863,3]
[351045593,1738306265572,-750.68,0.00019863,3]
[351045594,1738306265583,-2616.13,0.00019863,3]
[351045595,1738306265595,-1071.39,0.00019863,3]
[351045596,1738306265606,-500.0,0.00019863,3]
[351045597,1738306265616,-1260.83,0.00019863,3]
[351045598,1738306265625,-500.0,0.00019863,3]
[351045599,1738306265635,-2220.27,0.00019863,3]
[351045600,1738306265646,-500.0,0.00019863,3]
[351045601,1738306265657,-500.0,0.00019863,3]
[351045602,1738306265666,-595.77,0.00019863,3]
[351045603,1738306265676,-361.08687621,0.00019863,3]
[351045604,1738306265686,-1589.24,0.00019863,3]
[351045605,1738306265695,-1903.2,0.00019863,3]
[351045606,1738306265705,-1712.2,0.00019863,3]
[351045607,1738306265715,-3227.95,0.00019863,3]
[351045608,1738306265724,-500.0,0.00019863,3]
[351045609,1738306265734,-698.07,0.00019863,3]
[351045610,1738306265744,-1637.86,0.00019863,3]
[351045611,1738306265754,-500.0,0.00019863,3]
[351045612,1738306265763,-1085.18,0.00019863,3]
[351045613,1738306265774,-636.13,0.00019863,3]
[351045614,1738306265783,-662.78,0.00019863,3]
[351045615,1738306265792,-6654.01,0.00019863,3]
[351045616,1738306265802,-4419.8,0.00019863,3]
[351045617,1738306265812,-2914.04,0.00019863,3]
[351045618,1738306265822,-500.0,0.00019863,3]
[351045619,1738306265832,-1271.68,0.00019863,3]
[351045620,1738306265842,-922.13,0.00019863,3]
[351045621,1738306265852,-163.51932046,0.00019863,3]
[351045622,1738306265862,-535.94,0.00019863,3]
[351045623,1738306265872,-795.93,0.00019863,3]
[351045624,1738306265881,-674.93,0.00019863,3]
[351045625,1738306265891,-7050.63,0.00019863,3]
[351045626,1738306265901,-2874.0,0.00019863,3]
[351045627,1738306265911,-1253.83,0.00019863,3]
[351045628,1738306265920,-878.83,0.00019863,3]
[351045629,1738306265930,-4857.43,0.00019863,3]
[351045630,1738306265940,-2490.49,0.00019863,3]
[351045631,1738306265949,-1106.34,0.00019863,3]
[351045632,1738306265961,-848.25,0.00019863,3]
[351045633,1738306265971,-500.0,0.00019863,3]
[351045634,1738306265981,-789.12,0.00019863,3]
[351045635,1738306265991,-5756.47,0.00019863,3]
[351045636,1738306266001,-2234.81,0.00019863,3]
[351045637,1738306266015,-6250.12,0.00019863,3]
[351045638,1738306266025,-500.0,0.00019863,3]
[351045639,1738306266036,-500.0,0.00019863,3]
[351045640,1738306266046,-500.0,0.00019863,3]
[351045641,1738306266056,-709.82,0.00019863,3]
[351045642,1738306266066,-640.66,0.00019863,2]
[351045643,1738306266077,-3870.78,0.00019863,3]
[351045644,1738306266271,-2292.42,0.00019863,3]
[351045645,1738306266281,-3696.7,0.00019863,3]
[351045646,1738306266291,-500.0,0.00019863,3]
[351045647,1738306266300,-1183.26,0.00019863,3]
[351045648,1738306266309,-6297.68,0.00019863,3]
[351045649,1738306266319,-500.0,0.00019863,3]
[351045650,1738306266328,-500.0,0.00019863,3]
[351045651,1738306266337,-500.0,0.00019863,3]
[351045652,1738306266347,-503.64,0.00019863,3]
[351045653,1738306266356,-1370.04,0.00019863,3]
[351045654,1738306266365,-1253.5,0.00019863,3]
[351045655,1738306266374,-500.0,0.00019863,3]
[351045656,1738306266384,-5825.14,0.00019863,3]
[351045657,1738306266393,-2653.46,0.00019863,3]
[351045658,1738306266403,-3929.43,0.00019863,3]
[351045659,1738306266412,-1666.5,0.00019863,3]
[351045660,1738306266421,-500.0,0.00019863,3]
[351045661,1738306266431,-2750.04,0.00019863,3]
[351045662,1738306266440,-331.00390144,0.00019863,3]
[351045663,1738306266449,-1164.08,0.00019863,3]
[351045664,1738306266460,-2244.68,0.00019863,3]
[351045665,1738306266470,-2391.97,0.00019863,3]
[351045666,1738306266479,-500.0,0.00019863,3]
[351045667,1738306266489,-3028.69,0.00019863,3]
[351045668,1738306266498,-3515.3,0.00019863,3]
[351045669,1738306266507,-2135.03,0.00019863,3]
[351045670,1738306266517,-3198.65,0.00019863,3]
[351045671,1738306266527,-1116.45,0.00019863,3]
[351045672,1738306266536,-1464.88,0.00019863,3]
[351045673,1738306266545,-500.0,0.00019863,3]
[351045674,1738306266555,-732.68,0.00019863,3]
[351045675,1738306266564,-721.78,0.00019863,3]
[351045676,1738306266573,-1706.56,0.00019863,3]
[351045677,1738306266583,-1804.53,0.00019863,3]
[351045678,1738306266592,-7789.26,0.00019863,3]
[351045679,1738306266601,-500.0,0.00019863,3]
[351045680,1738306266610,-816.3,0.00019863,3]
[351045681,1738306266619,-1185.11,0.00019863,3]
[351045682,1738306266628,-500.0,0.00019863,3]
[351045683,1738306266637,-2669.85,0.00019863,3]
[351045684,1738306266646,-500.0,0.00019863,3]
[351045685,1738306266656,-1265.83,0.00019863,3]
[351045686,1738306266665,-1014.36,0.00019863,3]
[351045687,1738306266675,-532.0,0.00019863,3]
[351045688,1738306266685,-2661.46,0.00019863,3]
[351045689,1738306266694,-500.0,0.00019863,3]
[351045690,1738306266703,-5046.06,0.00019863,3]
[351045691,1738306266714,-878.62,0.00019863,3]
[351045692,1738306266723,-2962.42,0.00019863,3]
[351045693,1738306266733,-151.0,0.00019863,7]
[351045694,1738306266742,-151.0,0.00019863,7]
[351045695,1738306266752,-915.16,0.00019863,3]
[351045696,1738306266763,-151.0,0.00019863,7]
[351045697,1738306266772,-151.0,0.00019863,7]
[351045698,1738306266782,-151.0,0.00019863,7]
[351045699,1738306266792,-151.0,0.00019863,7]
[351045700,1738306266803,-151.0,0.00019863,7]
[351045701,1738306266813,-151.0,0.00019863,7]
[351045702,1738306266823,-151.0,0.00019863,7]
[351045703,1738306266833,-151.0,0.00019863,7]
[351045704,1738306266844,-151.0,0.00019863,7]
[351045705,1738306266854,-151.0,0.00019863,7]
[351045706,1738306266863,-151.0,0.00019863,7]
[351045707,1738306266875,-151.0,0.00019863,7]
[351045708,1738306266884,-1587.96,0.00019863,3]
[351045709,1738306266894,-3780.57,0.00019863,3]
[351045710,1738306266903,-151.0,0.00019863,7]
[351045711,1738306266914,-151.0,0.00019863,7]
[351045712,1738306266924,-151.0,0.00019863,7]
[351045713,1738306266933,-151.0,0.00019863,7]
[351045714,1738306266943,-151.0,0.00019863,7]
[351045715,1738306266952,-151.0,0.00019863,7]
[351045716,1738306266963,-151.0,0.00019863,7]
[351045717,1738306266972,-151.0,0.00019863,7]
[351045718,1738306266982,-151.0,0.00019863,7]
[351045719,1738306266991,-151.0,0.00019863,7]
[351045720,1738306267001,-1627.91,0.00019863,3]
[351045721,1738306267015,-151.0,0.00019863,7]
[351045722,1738306267025,-500.0,0.00019863,3]
[351045723,1738306267035,-151.0,0.00019863,7]
[351045724,1738306267045,-151.0,0.00019863,7]
[351045725,1738306267055,-151.0,0.00019863,7]
[351045726,1738306267064,-151.0,0.00019863,7]
[351045727,1738306267074,-151.0,0.00019863,7]
[351045728,1738306267086,-151.0,0.00019863,7]
[351045729,1738306267096,-151.0,0.00019863,7]
[351045730,1738306267106,-151.0,0.00019863,7]
[351045731,1738306267115,-151.0,0.00019863,7]
[351045732,1738306267125,-151.0,0.00019863,7]
[351045733,1738306267135,-151.0,0.00019863,7]
[351045734,1738306267145,-151.0,0.00019863,7]
[351045735,1738306267155,-151.0,0.00019863,7]
[351045736,1738306267165,-151.0,0.00019863,7]
[351045737,1738306267175,-151.0,0.00019863,7]
[351045738,1738306267185,-760.33,0.00019863,3]
[351045739,1738306267195,-151.0,0.00019863,7]
[351045740,1738306267206,-151.0,0.00019863,7]
[351045741,1738306267218,-151.0,0.00019863,7]
[351045742,1738306267228,-925.73,0.00019863,3]
[351045743,1738306267238,-1648.54,0.00019863,3]
[351045744,1738306267247,-1648.91,0.00019863,3]
[351045745,1738306267256,-500.0,0.00019863,3]
[351045746,1738306267266,-981.99,0.00019863,3]
[351045747,1738306267275,-500.0,0.00019863,3]
[351045748,1738306267285,-1799.13,0.00019863,3]
[351045749,1738306267294,-1292.12,0.00019863,3]
[351045750,1738306267303,-776.44,0.00019863,3]
[351045751,1738306267313,-2207.59,0.00019863,3]
[351045752,1738306267322,-500.0,0.00019863,3]
[351045753,1738306267331,-559.42,0.00019863,3]
[351045754,1738306267340,-1064.84,0.00019863,3]
[351045755,1738306267350,-1741.92,0.00019863,3]
[351045756,1738306267359,-500.0,0.00019863,3]
[351045757,1738306267368,-3067.11,0.00019863,3]
[351045758,1738306267378,-609.2,0.00019863,3]
[351045759,1738306267387,-4674.57,0.00019863,3]
[351045760,1738306267397,-686.33,0.00019863,3]
[351045761,1738306267406,-500.0,0.00019863,3]
[351045762,1738306267416,-2396.66,0.00019863,3]
[351045763,1738306267425,-905.59,0.00019863,3]
[351045764,1738306267433,-150.0,0.00019866,4]
[351045765,1738306267443,-150.0,0.00019893,4]
[351045766,1738306267452,-200.0,0.000199,7]
[351045767,1738306267462,-4308.87172391,0.00019904,2]
[351045768,1738306267472,-150.0,0.00019912,4]
[351045769,1738306267481,-1000.0,0.00019921,2]
[351045770,1738306267491,-3000.0,0.0001996,2]
[351045771,1738306267500,-500.0,0.00019962,2]
[351045772,1738306267509,-150.0,0.00019977,4]
[351045773,1738306267519,-508.69,0.00019999,2]
[351045774,1738306267528,-768.34,0.00019999,3]
[351045775,1738306267538,-500.0,0.0002,3]
[351045776,1738306267548,-500.0,0.0002,3]
[351045777,1738306267558,-500.0,0.0002,3]
[351045778,1738306267567,-500.0,0.0002,3]
[351045779,1738306267576,-500.0,0.0002,3]
[351045780,1738306267586,-5115.36,0.0002,2]
[351045781,1738306267597,-500.0,0.0002,3]
[351045782,1738306267606,-500.0,0.0002,3]
[351045783,1738306267616,-500.0,0.0002,3]
[351045784,1738306267626,-500.0,0.0002,3]
[351045785,1738306267636,-618.9,0.0002,3]
[351045786,1738306267647,-500.0,0.0002,3]
[351045787,1738306267657,-500.0,0.0002,3]
[351045788,1738306267667,-602.48,0.0002,3]
[351045789,1738306267676,-839.47,0.0002,3]
[351045790,1738306267686,-500.0,0.0002,3]
[351045791,1738306267695,-504.54,0.0002,3]
[351045792,1738306267705,-500.0,0.0002,3]
[351045793,1738306267715,-500.0,0.0002,3]
[351045794,1738306267725,-524.85,0.0002,3]
[351045795,1738306267734,-593.95,0.0002,3]
[351045796,1738306267743,-500.0,0.0002,3]
[351045797,1738306267753,-500.0,0.0002,3]
[351045798,1738306267762,-500.0,0.0002,3]
[351045799,1738306267772,-2153.056468,0.0002,3]
[351045800,1738306267781,-832.59,0.0002,3]
[351045801,1738306267790,-906.17,0.0002,3]
[351045802,1738306267799,-500.0,0.0002,3]
[351045803,1738306267808,-650.25,0.0002,3]
[351045804,1738306267818,-1066.56,0.0002,3]
[351045805,1738306267827,-1499.477048,0.0002,3]
[351045806,1738306267836,-500.0,0.0002,3]
[351045807,1738306267846,-500.0,0.0002,3]
[351045808,1738306267855,-500.0,0.0002,3]
[351045809,1738306267865,-717.04,0.0002,3]
[351045810,1738306267875,-500.0,0.0002,3]
[351045811,1738306267884,-500.0,0.0002,3]
[351045812,1738306267894,-500.0,0.0002,3]
[351045813,1738306267905,-500.0,0.0002,3]
[351045814,1738306267915,-500.0,0.0002,3]
[351045815,1738306267925,-500.0,0.0002,3]
[351045816,1738306267935,-634.07,0.0002,3]
[351045817,1738306267944,-975.34,0.0002,3]
[351045818,1738306267954,-500.0,0.0002,3]
[351045819,1738306267964,-500.0,0.0002,3]
[351045820,1738306267973,-500.0,0.0002,3]
[351045821,1738306267982,-500.0,0.0002,3]
[351045822,1738306267991,-500.0,0.0002,3]
[351045823,1738306268001,-500.0,0.0002,3]
[351045824,1738306268015,-666.34,0.0002,3]
[351045825,1738306268024,-678.47,0.0002,3]
[351045826,1738306268034,-662.92,0.0002,3]
[351045827,1738306268043,-500.0,0.0002,3]
[351045828,1738306268054,-500.0,0.0002,3]
[351045829,1738306268063,-500.0,0.0002,3]
[351045830,1738306268073,-1117.45,0.0002,3]
[351045831,1738306268083,-702.33,0.0002,3]
[351045832,1738306268092,-604.08,0.0002,3]
[351045833,1738306268101,-500.0,0.0002,3]
[351045834,1738306268110,-1293.05,0.0002,3]
[351045835,1738306268120,-542.25,0.0002,3]
[351045836,1738306268129,-960.27,0.0002,3]
[351045837,1738306268139,-568.51,0.0002,3]
[351045838,1738306268151,-718.36,0.0002,3]
[351045839,1738306268160,-500.0,0.0002,3]
[351045840,1738306268171,-1056.78,0.0002,3]
[351045841,1738306268180,-500.0,0.0002,3]
[351045842,1738306268190,-581.44,0.0002,3]
[351045843,1738306268199,-678.95,0.0002,3]
[351045844,1738306268209,-500.0,0.0002,3]
[351045845,1738306268218,-500.0,0.0002,3]
[351045846,1738306268227,-500.0,0.0002,3]
[351045847,1738306268236,-859.88,0.0002,3]
[351045848,1738306268245,-500.0,0.0002,3]
[351045849,1738306268254,-500.0,0.0002,3]
[351045850,1738306268264,-1253.69,0.0002,3]
[351045851,1738306268273,-500.0,0.0002,3]
[351045852,1738306268283,-332.70113335,0.0002,3]
[351045853,1738306268292,-500.0,0.0002,3]
[351045854,1738306268301,-709.31,0.0002,3]
[351045855,1738306268311,-592.15,0.0002,3]
[351045856,1738306268319,-500.0,0.0002,3]
[351045857,1738306268329,-500.0,0.0002,3]
[351045858,1738306268339,-616.48,0.0002,3]
[351045859,1738306268348,-500.0,0.0002,3]
[351045860,1738306268357,-1153.93,0.0002,3]
[351045861,1738306268367,-536.54,0.0002,3]
[351045862,1738306268377,-560.68,0.0002,3]
[351045863,1738306268386,-707.1,0.0002,3]
[351045864,1738306268395,-500.0,0.0002,3]
[351045865,1738306268404,-839.24,0.0002,3]
[351045866,1738306268414,-500.0,0.0002,3]
[351045867,1738306268424,-500.0,0.0002,3]
[351045868,1738306268433,-500.0,0.0002,3]
[351045869,1738306268443,-500.0,0.0002,3]
[351045870,1738306268451,-728.4,0.0002,3]
[351045871,1738306268462,-1433.98,0.0002,3]
[351045872,1738306268471,-500.0,0.0002,3]
[351045873,1738306268480,-997.28,0.0002,3]
[351045874,1738306268489,-1167.42,0.0002,3]
[351045875,1738306268498,-500.0,0.0002,3]
[351045876,1738306268508,-500.0,0.0002,3]
[351045877,1738306268517,-500.0,0.0002,3]
[351045878,1738306268526,-536.85,0.0002,3]
[351045879,1738306268536,-628.24,0.0002,3]
[351045880,1738306268545,-1006.28,0.0002,3]
[351045881,1738306268554,-500.0,0.0002,3]